Cogmind - Beta 16 @@@ ROGUE MODE // 2025.12.04 @ 14:11:22 Player: Grem Result: Destroyed by G-47 Trooper with Particle Gun Performance ------------- Evolutions (2) 1000 Regions Visited (3) 600 Robots Destroyed (10) 50 Value Destroyed (333) 333 Prototype IDs (0) 0 Alien Tech Used (0) 0 Bonus (0) 0 TOTAL SCORE: 1983 Bonus ------- None Cogmind --------- Core Integrity 0/550 Matter 249/300 Energy 100/100 System Corruption 1% Temperature Cool (9) Movement Core (700) Ox13 Location -8/Materials Parts ------- > --- POWER (2) -------- (None) > --- PROPULSION (2) --- (None) > --- UTILITY (3) ------ High-capacity Storage Unit > --- WEAPON (4) ------- (None) > --- INVENTORY (20) --- Medium Storage Unit Medium Matter Pod (100) Peak State ------------ > --- POWER ------------ Ion Engine Light Ion Engine > --- PROPULSION ------- Light Treads Light Treads > --- UTILITY ---------- High-capacity Storage Unit Sensor Array Makeshift Kinetic Plating > --- WEAPON ----------- Barrage Gun Makeshift Shrapnel Gun Grenade Launcher > --- INVENTORY -------- Medium Storage Unit Medium Matter Pod [Rating: 18] Favorites ----------- Power Ion Engine Engine Ion Engine Propulsion Light Treads Treads Light Treads Utility High-capacity Storage Unit Device Sensor Array Storage High-capacity Storage Unit Protection Makeshift Kinetic Plating Weapon Assault Rifle Ballistic Gun Assault Rifle Launcher Grenade Launcher Build | -11 -10 -10 -8 ------- Run | Yrd Mat Sub Mat Slots Evolved 4 | . . . 4 Power 1 | . . . 1 Propulsion . | . . . . Utility 1 | . . . 1 Weapon 2 | . . . 2 Parts Attached 13 | 5 5 3 . Power 2 | 1 1 . . Engine 2 | 1 1 . . Core . | . . . . Reactor . | . . . . Propulsion 2 | 2 . . . Treads 2 | 2 . . . Leg . | . . . . Wheel . | . . . . Hover . | . . . . Flight . | . . . . Utility 4 | . 3 1 . Device 1 | . 1 . . Storage 2 | . 2 . . Processor . | . . . . Hackware . | . . . . Protection 1 | . . 1 . Artifact . | . . . . Weapon 5 | 2 1 2 . Energy Gun . | . . . . Energy Cannon . | . . . . Ballistic Gun 4 | 2 . 2 . Ballistic Cannon . | . . . . Launcher 1 | . 1 . . Special Weapon . | . . . . Impact Weapon . | . . . . Slashing Weapon . | . . . . Piercing Weapon . | . . . . Special Melee Weapon . | . . . . Unidentified Prototypes . | . . . . Parts Lost 9 | . . . 9 Power 2 | . . . 2 Propulsion 2 | . . . 2 Utility 2 | . . . 2 Weapon 3 | . . . 3 Highest Loss Streak 9 | . . . 9 To Critical Strikes . | . . . . Average Backups 3 | . 2 4 2 Power . | . . 1 . Propulsion . | . . . . Utility 1 | . 1 2 2 Weapon . | . . 1 . Tool/Special . | . . . . Unused Backups 1 | . . . 1 Power . | . . . . Propulsion . | . . . . Utility 1 | . . . 1 Weapon . | . . . . Tool/Special . | . . . . Average Slot Usage (%) 90 | . 91 100 60 Engine 13 | . 14 14 12 Treads 25 | . 28 28 11 Device 8 | . 5 14 7 Storage 13 | . 15 13 9 Protection 1 | . . . 6 Ballistic Gun 22 | . 24 23 12 Launcher 3 | . 3 4 1 Peak Build Rating 18 | 5 7 15 18 Average Rating 7 | 3 6 7 12 On Entrance 6 | . 5 7 15 Avg Prop Armor Cover (%) . | . . . . Naked Turns . | . . . . Heaviest Build 64 | 6 50 51 64 Greatest Support 40 | 40 40 40 40 Greatest Overweight (x) 3 | . 1 1 3 Average Overweight (x) . | . . . 1 Largest Inventory Capacity 20 | 5 20 20 20 Average Capacity 18 | 5 18 18 20 Most Carried 6 | . 4 6 4 Average Carried 3 | . 2 4 2 Final Capacity 20 | 5 20 5 20 Final Carried 5 | . 4 5 2 Class Distribution -------------------- 97% | Mutant Dominant Class ---------------- Mutant | -10/Materials Mutant | -10/Subcaves Mutant | -8/Materials Resources | -11 -10 -10 -8 ----------- Run | Yrd Mat Sub Mat Matter Collected 555 | 238 84 233 . Remotely . | . . . . Salvage Created 280 | . 84 134 62 Parts 21 | . 7 12 2 Haulers Intercepted . | . . . . Recyclers Shooed . | . . . . Parts Field Recycled . | . . . . Retrieved Matter . | . . . . Parts Self-Destructed 2 | . . 2 . Prevented . | . . . . Parts Restored . | . . . . Kills | -11 -10 -10 -8 ------- Run | Yrd Mat Sub Mat Combat Hostiles Destroyed 10 | . 4 4 2 Guns 4 | . 4 . . AOE 6 | . . 4 2 Classes Destroyed 5 | . 2 3 . Swarmer 3 | . 3 . . Grunt 3 | . 1 . 2 Sentry 1 | . . 1 . Cobbler 1 | . . 1 . Subdweller 3 | . . 3 . Best Kill Streak 3 | . 3 3 2 Combat Bots Only 3 | . 3 3 2 Max Kills in Single Turn 2 | . 1 2 1 Gunslinging . | . . . . Exploded 2 | . . 2 1 Melee . | . . . . Uniques/NPCs Destroyed . | . . . . Combat | -11 -10 -10 -8 -------- Run | Yrd Mat Sub Mat Hostile Shots Fired 157 | . 50 7 100 Missed 49 | . 17 2 30 Hits 108 | . 33 5 70 Projectile 108 | . 33 5 70 Critical Strikes 4 | . . . 4 Damage Taken 1610 | . 266 113 1231 Core 585 | . 31 . 554 Absorbed by Shields . | . . . . Core Remaining (%) 93 | 100 . 87 . Volleys Fired 20 | . 10 5 5 Largest 3 | . 2 2 3 Hottest 82 | . 40 50 82 Shots Fired 44 | . 20 10 14 Gun 35 | . 20 5 10 Cannon . | . . . . Launcher 9 | . . 5 4 Special . | . . . . Kinetic 35 | . 20 5 10 Thermal . | . . . . Explosive 9 | . . 5 4 Electromagnetic . | . . . . Robot Hit Streak 12 | . 4 12 . Robot Miss Streak 5 | . 2 . 5 Penetration Max . | . . . . Secondary Targets . | . . . . Shots Hit Robots 23 | . 13 10 . Core Hits 35 | . 6 12 17 Critical Kills . | . . . . Critical Parts Destroyed . | . . . . Critical Strikes . | . . . . Melee Attacks . | . . . . Impact . | . . . . Slashing . | . . . . Piercing . | . . . . Sneak Attacks . | . . . . Combat Hostiles . | . . . . Follow-up Attacks . | . . . . Damage Inflicted 781 | . 138 334 309 Guns 227 | . 138 43 46 Cannons . | . . . . Explosions 551 | . . 291 260 Melee . | . . . . Ramming 3 | . . . 3 Kinetic 227 | . 138 43 46 Thermal . | . . . . Explosive 551 | . . 291 260 Electromagnetic . | . . . . Impact . | . . . . Slashing . | . . . . Piercing . | . . . . Highest Corruption 1 | . . . 1 Average Corruption 1 | . . . 1 Corruption Purged . | . . . . Corruption Blocked . | . . . . Overload Shots . | . . . . Overflow Damage . | . . . . Projectiles . | . . . . Explosions . | . . . . Melee . | . . . . Knockbacks . | . . . . Impact . | . . . . Kinetic . | . . . . Secondary . | . . . . Self-Inflicted Damage 30 | . . . 30 Shots 1 | . . . 1 Rammed 6 | . . . 6 Targets Rammed 6 | . . . 6 Kicked . | . . . . Crushed . | . . . . Highest Temperature 202 | . 6 . 202 Average Temperature 96 | . 6 . 105 Received Heat Transfer 747 | . 18 27 702 Siege Activations . | . . . . Martial Activations . | . . . . Shielding Activations . | . . . . Robots Disrupted . | . . . . Combat Hostiles . | . . . . Robots Corrupted . | . . . . Combat Hostiles . | . . . . Parts Fried . | . . . . Impact Corruptions . | . . . . Robots Melted . | . . . . Combat Hostiles . | . . . . Parts Melted . | . . . . Heat Transferred . | . . . . Parts Sabotaged . | . . . . Parts Stolen . | . . . . Parts Stripped . | . . . . Power Chain Reactions . | . . . . Alert | -11 -10 -10 -8 ------- Run | Yrd Mat Sub Mat Maximum Alert Level . | . . . . Low Security (%) 100 | 100 100 . 100 Level 1 . | . . . . Level 2 . | . . . . Level 3 . | . . . . Level 4 . | . . . . Level 5 . | . . . . High Security . | . . . . Max Security . | . . . . Peak Influence 77 | . 60 . 77 Initial . | . . . . Average 8 | . 9 . 9 Influence Increases 209 | . 100 20 89 Destroy 0b10 Robot/C 140 | . 80 20 40 Destroy Leader 20 | . 10 . 10 Successful Hack 12 | . 10 . 2 Disable Machine 15 | . . . 15 Destroy Structure 22 | . . . 22 Influence Decreases 209 | . 100 20 89 Time Decay 142 | . 100 20 22 Lost Part 67 | . . . 67 Squads Dispatched 5 | . . . 5 Investigation 1 | . . . 1 Extermination . | . . . . Reinforcement 1 | . . . 1 Assault . | . . . . Garrison 3 | . . . 3 Intercept . | . . . . Searches Triggered . | . . . . Construction Impeded 1 | . . . 1 Haulers Reinforced . | . . . . Active Scanning Responses . | . . . . Cargo Convoy Interrupts . | . . . . Stealth | -11 -10 -10 -8 --------- Run | Yrd Mat Sub Mat Distress Signals 2 | . . . 2 Communications Jammed . | . . . . Distress Signals . | . . . . Times Spotted 22 | . 4 4 14 Peak Tracking Total 10 | . 4 3 10 Tactical Retreats . | . . . . Traps | -11 -10 -10 -8 ------- Run | Yrd Mat Sub Mat Traps Triggered . | . . . . Indirectly . | . . . . Trap Hack Attempts . | . . . . Triggered . | . . . . Disarmed . | . . . . Reprogrammed . | . . . . Reused . | . . . . Traps Extracted . | . . . . Installed . | . . . . Triggered . | . . . . Machines | -11 -10 -10 -8 ---------- Run | Yrd Mat Sub Mat Machines Disabled 1 | . . . 1 Max in Single Turn 1 | . . . 1 Machines Repaired . | . . . . Machines Dismantled . | . . . . Machines Sabotaged . | . . . . Overloaded Fab Kills . | . . . . Hacking | -11 -10 -10 -8 --------- Run | Yrd Mat Sub Mat Machines Accessed 3 | . 2 . 1 Terminals 2 | . 2 . . Fabricators . | . . . . Repair Stations . | . . . . Recycling Units . | . . . . Scanalyzers 1 | . . . 1 Garrison Access . | . . . . Total Hacks 7 | . 4 . 3 Successful 6 | . 3 . 3 Failed 1 | . 1 . . Catastrophic . | . . . . Database Lockouts . | . . . . Manual . | . . . . Terminals 4 | . 4 . . Fabricators . | . . . . Repair Stations . | . . . . Recycling Units . | . . . . Scanalyzers 3 | . . . 3 Garrison Access . | . . . . Terminal Hacks 3 | . 3 . . Reinforcement Status 1 | . 1 . . Hauler Manifests 1 | . 1 . . Zone Layout 1 | . 1 . . Fabricator Hacks . | . . . . Repair Station Hacks . | . . . . Recycling Unit Hacks . | . . . . Scanalyzer 3 | . . . 3 Insert Component 1 | . . . 1 Analyze 1 | . . . 1 Retrieve Study 1 | . . . 1 Garrison Access Hacks . | . . . . Unauthorized Hacks . | . . . . Terminals . | . . . . Fabricators . | . . . . Repair Stations . | . . . . Recycling Units . | . . . . Scanalyzers . | . . . . Garrison Access . | . . . . Data Cores Recovered . | . . . . Used . | . . . . Hacking Detections 2 | . 1 . 1 Full Trace Events 1 | . . . 1 Feedback Events . | . . . . Feedback Blocked . | . . . . Robot Schematics Acquired . | . . . . Robots Built . | . . . . Authchips . | . . . . Time . | . . . . Total Robot Build Rating . | . . . . Part Schematics Acquired 1 | . . . 1 Parts Built . | . . . . Authchips . | . . . . Time . | . . . . Total Part Build Rating . | . . . . Part Studies Acquired 1 | . . . 1 Parts Repaired . | . . . . Time . | . . . . Parts Recycled . | . . . . Recycled Matter . | . . . . Retrieved Matter . | . . . . Retrieved Components . | . . . . Parts Scanalyzed 1 | . . . 1 Part Schematics Acquired 1 | . . . 1 Parts Damaged . | . . . . Bothacking | -11 -10 -10 -8 ------------ Run | Yrd Mat Sub Mat Used RIF Installer . | . . . . Robots Hacked . | . . . . Non-combat . | . . . . Combat . | . . . . Robot Hacks Applied . | . . . . Relay Couplers Released . | . . . . Fabnet Peak Effective % . | . . . . Robots Rewired . | . . . . Allies Hacked . | . . . . Hacks Repelled . | . . . . Allies | -11 -10 -10 -8 -------- Run | Yrd Mat Sub Mat Total Allies . | . . . . Largest Group . | . . . . Highest-Rated Group . | . . . . Highest-Rated Ally . | . . . . Total Orders . | . . . . Ally Attacks . | . . . . Total Damage . | . . . . Kills . | . . . . Allies Corrupted . | . . . . Allies Melted . | . . . . Intel | -11 -10 -10 -8 ------- Run | Yrd Mat Sub Mat Active Infowar (turns) 771 | . 208 440 123 Sensors 771 | . 208 440 123 Robot Analysis Total . | . . . . Derelict Logs Recovered . | . . . . Drone Launches . | . . . . Drone Recoveries . | . . . . Exploration | -11 -10 -10 -8 ------------- Run | Yrd Mat Sub Mat Turns Passed 1207 | 70 538 440 159 Spaces Moved 472 | 41 213 180 38 Core 2 | 2 . . . Treads 470 | 39 213 180 38 Legs . | . . . . Wheels . | . . . . Hover . | . . . . Flight . | . . . . Fastest Speed 50 | 50 160 160 240 Average Speed 225 | 154 229 231 258 Slowest Speed 400 | 160 240 240 400 Overloaded Moves . | . . . . Propulsion Burnouts . | . . . . Robots Hopped . | . . . . Potential Cave-ins . | . . . . Cave-ins Triggered . | . . . . Exploration Rate (%) 13 | 4 26 18 4 Regions Visited 3 Branch Regions 1 Pre-discovered Areas . | . . . . Known Exits Taken . | . . . . Unknown Exits Taken 3 | 1 1 1 . Scrap Searched 4 | . . 4 . Spaces Dug . | . . . . Terrain Destroyed 41 | . . 21 20 Melee . | . . . . Projectile . | . . . . AOE 41 | . . 21 20 Terrain Rammed . | . . . . Walls Destroyed . | . . . . Machines Disabled . | . . . . Actions | -11 -10 -10 -8 --------- Run | Yrd Mat Sub Mat Total 533 | 45 243 193 52 Wait 12 | . 12 . . Move 469 | 40 212 179 38 Hop . | . . . . Pick Up 6 | . 3 3 . Fast Attach 7 | 5 2 . . Attach 3 | . . . 3 Detach . | . . . . Swap 8 | . 4 4 . Drop 2 | . . 2 . Fire 20 | . 10 5 5 Melee . | . . . . Ram 6 | . . . 6 Kick . | . . . . Crush . | . . . . Escape Stasis . | . . . . Rewire . | . . . . Trap . | . . . . Miscellaneous . | . . . . Route ------- -11/Scrapyard -10/Materials -10/Subcaves -8/Materials History --------- Turn | Location | Event 21 | -11/Scrapyard | Discovered new exit (range 15) 71 | -11/Scrapyard | Entered Materials 313 | -10/Materials | Build established: Mutant 518 | -10/Materials | Discovered new exit (range 7) 609 | -10/Materials | Entered Subcaves 967 | -10/Subcaves | Disturbed a concealed Subdweller 970 | -10/Subcaves | A swath of the cavern ceiling suddenly collapsed 1034 | -10/Subcaves | Discovered new exit (range 9) 1049 | -10/Subcaves | Entered Materials 1049 | -8/Materials | Evolved 4 slots: Power x1, Utility x1, Weapon x2 1181 | -8/Materials | Core integrity fell below 50% 1197 | -8/Materials | Core integrity fell below 20% 1203 | -8/Materials | Lost 9 parts (2p2n2u3w) 1208 | -8/Materials | Destroyed by G-47 Trooper with Particle Gun Last Messages --------------- Mak. Shrapnel Gun destroyed. R-06 Scavenger collects Lgt. Nuclear Core. Mak. Kinetic Plating destroyed. Lgt. Treads destroyed. Slammed into G-47 Trooper. [Achievement: For Emergencies Only] Barrage Gun destroyed. Ion Engine destroyed. Sensor Array destroyed. Slammed into G-47 Trooper. Critical hit (Burn: +37). G-47 Trooper destroyed. Slammed into G-47 Trooper. Destabilizing: System corrupted (+1). Critical hit (Burn: +37). Slammed into G-47 Trooper. Destabilizing: Core damaged (-27). Critical hit (Burn: +37). Slammed into G-47 Trooper. Destabilizing: Core damaged (-22). Map ----- +----------------------------------------------------+ | ??????????????????????????????????????????? | | ??????????????????????????????????????????? | | ??????????????????????????????????????????? | | ??????????????????????????????????????????? | | ??????????????????????????????????????????? | | ??????????????????????????????????????????? | | ??????????????????????????????????????????? | | ????????????????###?###########???????????? | | ???????????????? !]?# "" #???????????? | | ?????????????????][?# ""S #???????????? | | ?????????????????][?# """ "" #???????????? | | ????????????+ ???? # """ #???????????? | | ????????????# ?? # " ##??????????? | | ????????????# ? # #??????????? | | ???????????????? # #??????????? | | ???????????????????## % #??????????? | | ??????????????###### # ###????????? | | ??????????????# ??? | | ??????????????# T???? | | ??????????????# % % ??? | | ??????????????####Y### + ####### ???? | | ?????????????????# #?## ##????????????? | | ?????????????????# #??? """ #?????????????? | | ?????????????????#g#??? "G" #?????????????? | | ?????????????????#g#??? " " #?????????????? | | ?????????????????#@#??? ?#?????????????? | | ?????????????????#g#??? ? ??????????????? | | ?????????????????#g#??? !!????????????????? | | ?????????????????#u#??? !?????????????????? | | ?????????????????# ????!!????????????????? | | ?????????????????# ??????????????????????? | | ?????????????????# ??????????????????????? | | ?????????????????# ??????????????????????? | | ?????????????????# ??????????????????????? | | ?????????????????? ??????????????????????? | | ?????????????????? " ?????????????????????? | | ?????????????????? ?????????????????????? | | ?????????????????? ?????????????????????? | | ?????????????????? #?????????????????????? | | ?????????????????? ???????????????????????? | | ?????????????????? ???????????????????????? | | ??????????????????????????????????????????? | | ??????????????????????????????????????????? | | ??????????????????????????????????????????? | | ??????????????????????????????????????????? | | ??????????????????????????????????????????? | | ??????????????????????????????????????????? | | ??????????????????????????????????????????? | | ??????????????????????????????????????????? | | ??????????????????????????????????????????? | +----------------------------------------------------+ Best States ------------- Heat Dissipation 31 Energy Generation 15 Energy Capacity 275 Matter Stores 300 Matter Capacity 400 Sight Range 16 Robot Scan Range 14 Terrain Scan Density 10 Armor Coverage 100 Resistance: KI 10 Evasion (%) 40 Recoil Reduction 2 Item Schematics ----------------- Grenade Launcher | -8/Materials | Scanalyzed Robot Schematics ------------------ None Fabricated ------------ Nothing Repaired ---------- Nothing Studied --------- Grenade Launcher | -8/Materials | Hacked Alien Tech Used ----------------- None Achievements -------------- For Emergencies Only Item+ Organ Harvest Resistances Are Futile Challenges ------------ None Game ------ Seed SpreadSpliceTether Manual? 0 Play Time 00:17:51 Cumulative 6.9 hours Start 2025.12.04 @ 13:52:05 End 2025.12.04 @ 14:11:22 Sessions 1 Manual Loads 0 Difficulty Rogue Special Mode None Game No. 11 Rogue 11 Adventurer 0 Explorer 0 Win Type - Total 0 Types 0/0/0/0/0/0/0/0/0/0 Lore% 2 Gallery% 10 Achievement% 8 Wizard Run 0 Options --------- Layout 1 ASCII 0 Keyboard 1 Movement Vi Keybinds 0 Fullscreen 1 Font 32/SmallcapsGlow Map View 50x35 Zoom Use 0% Tactical HUD 0 Map Filters NONE Filters NONE Steam 1 RUN: 3d426d41-b3e0-4dc5-bed7-cdcdc5588253